fUSD/lending_fUSD_20241224
["ID","MTS","AMOUNT","RATE_DAILY","PERIOD"]
[346504838,1735011139795,-500.0,0.00017257,2]
[346504839,1735011139805,-500.0,0.00017257,2]
[346504840,1735011139814,-500.0,0.00017257,2]
[346504841,1735011139824,-500.0,0.00017257,2]
[346504842,1735011139834,-500.0,0.00017257,2]
[346504843,1735011139843,-500.0,0.00017257,2]
[346504844,1735011139852,-500.0,0.00017257,2]
[346504845,1735011139862,-500.0,0.00017257,2]
[346504846,1735011139871,-500.0,0.00017257,2]
[346504847,1735011139880,-500.0,0.00017257,2]
[346504848,1735011139889,-500.0,0.00017257,2]
[346504849,1735011139899,-2197.64,0.00017257,2]
[346504850,1735011139908,-500.0,0.00017257,2]
[346504851,1735011139917,-500.0,0.00017257,2]
[346504852,1735011139926,-924.29,0.00017257,2]
[346504853,1735011139936,-3800.89,0.00017257,2]
[346504854,1735011139945,-4111.27,0.00017257,2]
[346504855,1735011139954,-3362.87,0.00017257,2]
[346504856,1735011139965,-512.14470193,0.00017257,2]
[346504857,1735011139973,-500.0,0.00017257,2]
[346504858,1735011139983,-500.0,0.00017257,2]
[346504859,1735011139991,-500.0,0.00017257,2]
[346504860,1735011140000,-944.42,0.00017257,2]
[346504861,1735011140010,-578.45,0.00017257,2]
[346504862,1735011140019,-1032.77,0.00017257,2]
[346504863,1735011140028,-3197.19,0.00017257,2]
[346504864,1735011140038,-893.07,0.00017257,2]
[346504865,1735011140047,-831.96,0.00017257,2]
[346504866,1735011140056,-1264.9,0.00017257,2]
[346504867,1735011140065,-3791.3,0.00017257,2]
[346504868,1735011140074,-472.19229199,0.00017257,2]
[346504869,1735011140085,-1468.04,0.00017257,2]
[346504870,1735011140094,-618.66,0.00017257,2]
[346504871,1735011140104,-500.0,0.00017257,2]
[346504872,1735011140114,-880.68,0.00017257,2]
[346504873,1735011140124,-4498.81,0.00017257,2]
[346504874,1735011140133,-980.14,0.00017257,2]
[346504875,1735011140143,-500.0,0.00017257,2]
[346504876,1735011140153,-845.95,0.00017257,2]
[346504877,1735011140162,-768.63,0.00017257,2]
[346504878,1735011140172,-1633.61,0.00017257,2]
[346504879,1735011140182,-10724.41,0.00017257,2]
[346504880,1735011140191,-500.0,0.00017257,2]
[346504881,1735011140200,-1907.04,0.00017257,2]
[346504882,1735011140210,-3409.97,0.00017257,2]
[346504883,1735011140220,-500.0,0.00017257,2]
[346504884,1735011140230,-500.0,0.00017257,2]
[346504885,1735011140239,-3144.7,0.00017257,2]
[346504886,1735011140248,-7767.4,0.00017257,2]
[346504887,1735011140257,-3102.39,0.00017257,2]
[346504888,1735011140267,-2500.86,0.00017257,2]
[346504889,1735011140277,-16025.73,0.00017257,2]
[346504890,1735011140287,-557.5,0.00017257,2]
[346504891,1735011140297,-6082.71,0.00017257,2]
[346504892,1735011140307,-2316.02,0.00017257,2]
[346504893,1735011140316,-1193.06,0.00017257,2]
[346504894,1735011140326,-599.65,0.00017257,2]
[346504895,1735011140337,-500.0,0.00017257,2]
[346504896,1735011140347,-500.0,0.00017258,2]
[346504897,1735011140356,-500.0,0.00017258,2]
[346504898,1735011140365,-500.0,0.00017258,2]
[346504899,1735011140374,-500.0,0.00017258,2]
[346504900,1735011140383,-500.0,0.00017258,2]
[346504901,1735011140393,-500.0,0.00017258,2]
[346504902,1735011140403,-500.0,0.00017258,2]
[346504903,1735011140412,-511.03,0.00017258,2]
[346504904,1735011140421,-500.0,0.00017258,2]
[346504905,1735011140431,-500.0,0.00017258,2]
[346504906,1735011140440,-500.0,0.00017258,2]
[346504907,1735011140450,-500.0,0.00017258,2]
[346504908,1735011140459,-500.0,0.00017258,2]
[346504909,1735011140468,-594.1289729,0.00017258,2]
[346504910,1735011140478,-500.0,0.00017258,2]
[346504911,1735011140487,-500.0,0.00017258,2]
[346504912,1735011140496,-175.5960266,0.00017258,2]
[346504913,1735011140505,-500.0,0.00017258,2]
[346504914,1735011140514,-500.0,0.00017258,2]
[346504915,1735011140523,-500.0,0.00017258,2]
[346504916,1735011140533,-500.0,0.00017258,2]
[346504917,1735011140543,-500.0,0.00017258,2]
[346504918,1735011140552,-500.0,0.00017258,2]
[346504919,1735011140561,-500.0,0.00017258,2]
[346504920,1735011140571,-500.0,0.00017258,2]
[346504921,1735011140580,-500.0,0.00017258,2]
[346504922,1735011140592,-511.22,0.00017258,2]
[346504923,1735011140603,-500.0,0.00017258,2]
[346504924,1735011140612,-500.0,0.00017258,2]
[346504925,1735011140621,-963.35,0.00017258,2]
[346504926,1735011140631,-500.0,0.00017258,2]
[346504927,1735011140640,-817.97,0.00017258,2]
[346504928,1735011140649,-1137.67,0.00017258,2]
[346504929,1735011140658,-916.16,0.00017258,2]
[346504930,1735011140667,-876.13,0.00017258,2]
[346504931,1735011140676,-500.0,0.00017258,2]
[346504932,1735011140686,-850.87,0.00017258,2]
[346504933,1735011140695,-809.33,0.00017258,2]
[346504934,1735011140704,-576.68,0.00017258,2]
[346504935,1735011140713,-680.75,0.00017258,2]
[346504936,1735011140722,-1535.16,0.00017258,2]
[346504937,1735011140731,-500.0,0.00017258,2]
[346504938,1735011140740,-835.68,0.00017258,2]
[346504939,1735011140749,-500.0,0.00017258,2]
[346504940,1735011140759,-11706.4,0.00017258,2]
[346504941,1735011140768,-659.12,0.00017258,2]
[346504942,1735011140777,-500.0,0.00017258,2]
[346504943,1735011140786,-653.62,0.00017258,2]
[346504944,1735011140795,-534.76,0.00017258,2]
[346504945,1735011140805,-1707.85,0.00017258,2]
[346504946,1735011140814,-500.0,0.00017258,2]
[346504947,1735011140824,-1321.6,0.00017258,2]
[346504948,1735011140834,-980.51,0.00017258,2]
[346504949,1735011140844,-1216.74,0.00017258,2]
[346504950,1735011140853,-941.42,0.00017258,2]
[346504951,1735011140863,-2484.72,0.00017258,2]
[346504952,1735011140872,-824.25,0.00017258,2]
[346504953,1735011140881,-766.19,0.00017258,2]
[346504954,1735011140890,-500.0,0.00017258,2]
[346504955,1735011140900,-500.0,0.00017258,2]
[346504956,1735011140909,-1000.0,0.00017258,2]
[346504957,1735011140918,-500.0,0.00017258,2]
[346504958,1735011140928,-1396.04,0.00017258,2]
[346504959,1735011140937,-500.0,0.00017258,2]
[346504960,1735011140947,-635.05,0.00017258,2]
[346504961,1735011140956,-789.1,0.00017258,2]
[346504962,1735011140965,-500.0,0.00017258,2]
[346504963,1735011140974,-2682.71,0.00017258,2]
[346504964,1735011140983,-500.0,0.00017258,2]
[346504965,1735011140992,-940.58,0.00017258,2]
[346504966,1735011141001,-669.82,0.00017258,2]
[346504967,1735011141011,-1941.26,0.00017258,2]
[346504968,1735011141020,-575.68,0.00017258,2]
[346504969,1735011141030,-1285.44,0.00017258,2]
[346504970,1735011141039,-734.43,0.00017258,2]
[346504971,1735011141049,-500.0,0.00017258,2]
[346504972,1735011141058,-1247.11,0.00017258,2]
[346504973,1735011141067,-500.0,0.00017258,2]
[346504974,1735011141076,-1338.65,0.00017258,2]
[346504975,1735011141087,-1230.35,0.00017258,2]
[346504976,1735011141096,-543.55,0.00017258,2]
[346504977,1735011141106,-338.91,0.00017258,2]
[346504978,1735011141115,-649.45,0.00017258,2]
[346504979,1735011141125,-500.0,0.00017258,2]
[346504980,1735011141134,-500.0,0.00017259,2]
[346504981,1735011141143,-500.0,0.00017259,2]
[346504982,1735011141152,-500.0,0.00017259,2]
[346504983,1735011141161,-500.0,0.00017259,2]
[346504984,1735011141170,-631.51498184,0.00017259,2]
[346504985,1735011141179,-395.16010478,0.00017259,2]
[346504986,1735011141188,-500.0,0.00017259,2]
[346504987,1735011141197,-500.0,0.00017259,2]
[346504988,1735011141207,-500.0,0.00017259,2]
[346504989,1735011141216,-500.0,0.00017259,2]
[346504990,1735011141225,-156.80356128,0.00017259,2]
[346504991,1735011141235,-500.0,0.00017259,2]
[346504992,1735011141243,-500.0,0.00017259,2]
[346504993,1735011141253,-500.0,0.00017259,2]
[346504994,1735011141262,-500.0,0.00017259,2]
[346504995,1735011141271,-500.0,0.00017259,2]
[346504996,1735011141280,-500.0,0.00017259,2]
[346504997,1735011141289,-500.0,0.00017259,2]
[346504998,1735011141299,-500.0,0.00017259,2]
[346504999,1735011141307,-500.0,0.00017259,2]
[346505000,1735011141317,-509.34,0.00017259,2]
[346505001,1735011141326,-500.0,0.00017259,2]
[346505002,1735011141335,-500.0,0.00017259,2]
[346505003,1735011141345,-500.0,0.00017259,2]
[346505004,1735011141354,-500.0,0.00017259,2]
[346505005,1735011141366,-594.29,0.00017259,2]
[346505006,1735011141383,-500.0,0.00017259,2]
[346505007,1735011141392,-670.25,0.00017259,2]
[346505008,1735011141402,-553.58,0.00017259,2]
[346505009,1735011141411,-1203.72,0.00017259,2]
[346505010,1735011141422,-500.0,0.00017259,2]
[346505011,1735011141431,-500.0,0.00017259,2]
[346505012,1735011141440,-500.0,0.00017259,2]
[346505013,1735011141449,-627.9,0.00017259,2]
[346505014,1735011141458,-500.0,0.00017259,2]
[346505015,1735011141468,-500.0,0.00017259,2]
[346505016,1735011141477,-500.0,0.00017259,2]
[346505017,1735011141486,-1878.0,0.0001726,2]
[346505018,1735011141495,-1075.0,0.0001726,2]
[346505019,1735011141505,-2048.58,0.0001726,2]
[346505020,1735011141515,-1779.8,0.0001726,2]
[346505021,1735011141524,-1311.88,0.0001726,2]
[346505022,1735011141534,-3042.34,0.0001726,2]
[346505023,1735011141543,-4145.26,0.0001726,2]
[346505024,1735011141553,-2510.92,0.0001726,2]
[346505025,1735011141562,-2165.74,0.0001726,2]
[346505026,1735011141571,-4218.72,0.0001726,2]
[346505027,1735011141580,-2191.99,0.0001726,2]
[346505028,1735011141592,-2002.38,0.0001726,2]
[346505029,1735011141603,-683.71,0.0001726,2]
[346505030,1735011141612,-500.0,0.0001726,2]
[346505031,1735011141621,-500.0,0.0001726,2]
[346505032,1735011141631,-18977.0,0.0001726,2]
[346505033,1735011141640,-760.03,0.0001726,2]
[346505034,1735011141649,-1641.11,0.0001726,2]
[346505035,1735011141658,-500.0,0.0001726,2]
[346505036,1735011141667,-977.57,0.0001726,2]
[346505037,1735011141677,-365.25,0.0001726,2]
[346505038,1735011141686,-977.57,0.0001726,2]
[346505039,1735011141695,-365.25,0.0001726,2]
[346505040,1735011141705,-977.57,0.0001726,2]
[346505041,1735011141715,-365.25,0.0001726,2]
[346505042,1735011141725,-977.57,0.0001726,2]
[346505043,1735011141734,-364.53,0.0001726,2]
[346505044,1735011141743,-977.57,0.0001726,2]
[346505045,1735011141752,-977.57,0.0001726,2]
[346505046,1735011141762,-977.57,0.0001726,2]
[346505047,1735011141771,-977.57,0.0001726,2]
[346505048,1735011141781,-977.57,0.0001726,2]
[346505049,1735011141790,-977.57,0.0001726,2]
[346505050,1735011141799,-904.24,0.0001726,2]
[346505051,1735011141808,-150.0,0.00017282,2]
[346505052,1735011141818,-150.0,0.00017294,2]
[346505053,1735011141827,-150.0,0.00017308,2]
[346505054,1735011141836,-1000.0,0.00017321,2]
[346505055,1735011141846,-1000.0,0.00017321,2]
[346505056,1735011141855,-150.0,0.00017321,2]
[346505057,1735011141864,-150.0,0.00017332,2]
[346505058,1735011141873,-150.0,0.00017334,2]
[346505059,1735011141883,-150.0,0.0001736,2]
[346505060,1735011141892,-150.0,0.0001737,2]
[346505061,1735011141901,-150.0,0.00017386,2]
[346505062,1735011141910,-150.0,0.00017386,2]
[346505063,1735011141919,-150.0,0.00017386,2]
[346505064,1735011141928,-152.0,0.00017389,4]
[346505065,1735011141937,-500.0,0.00017394,2]
[346505066,1735011141946,-1082.31050602,0.000174,2]
[346505067,1735011141955,-150.0,0.00017408,2]
[346505068,1735011141964,-150.0,0.00017412,2]
[346505069,1735011141973,-150.0,0.00017438,2]
[346505070,1735011141982,-150.0,0.00017445,2]
[346505071,1735011141991,-150.0,0.00017451,2]
[346505072,1735011142000,-553.36804499,0.00017454,2]
[346505073,1735011142009,-150.0,0.00017464,2]
[346505074,1735011142018,-150.0,0.00017483,2]
[346505075,1735011142028,-150.0,0.0001749,2]
[346505076,1735011142037,-1057.0,0.00017492,2]
[346505077,1735011142046,-200.0,0.000175,6]
[346505078,1735011142055,-150.0,0.00017516,2]
[346505079,1735011142063,-150.0,0.00017516,2]
[346505080,1735011142072,-150.0,0.00017521,2]
[346505081,1735011142082,-150.0,0.00017524,2]
[346505082,1735011142092,-1852.82,0.00017528,2]
[346505083,1735011142102,-500.0,0.00017528,2]
[346505084,1735011142112,-2606.93,0.00017528,2]
[346505085,1735011142121,-2999.55,0.00017528,2]
[346505086,1735011142131,-1157.43,0.00017528,2]
[346505087,1735011142140,-606.11,0.00017528,2]
[346505088,1735011142149,-6426.45,0.00017528,2]
[346505089,1735011142158,-1172.56,0.00017528,2]
[346505090,1735011142168,-4243.49,0.00017528,2]
[346505091,1735011142177,-1763.65,0.00017528,2]
[346505092,1735011142186,-154.430375,0.00017528,2]
[346505093,1735011142195,-1114.010296,0.00017528,2]
[346505094,1735011142204,-1609.76,0.00017528,2]
[346505095,1735011142214,-1255.913597,0.00017528,2]
[346505096,1735011142223,-3445.2,0.00017528,2]
[346505097,1735011142234,-2865.43,0.00017528,2]
[346505098,1735011142243,-9494.21,0.00017528,2]
[346505099,1735011142252,-875.1,0.00017528,2]
[346505100,1735011142262,-9217.19,0.00017528,2]
[346505101,1735011142272,-2293.91,0.00017528,2]
[346505102,1735011142281,-1133.56,0.00017528,2]
[346505103,1735011142291,-1695.02,0.00017528,2]
[346505104,1735011142301,-1707.6,0.00017528,2]
[346505105,1735011142310,-2242.13,0.00017528,2]
[346505106,1735011142320,-2349.54,0.00017528,2]
[346505107,1735011142330,-1817.06,0.00017528,2]
[346505108,1735011142340,-3224.69,0.00017528,2]
[346505109,1735011142349,-1391.02,0.00017528,2]
[346505110,1735011142359,-2776.88,0.00017528,2]
[346505111,1735011142369,-3101.23,0.00017528,2]
[346505112,1735011142378,-4039.9,0.00017528,2]
[346505113,1735011142387,-2093.55,0.00017528,2]
[346505114,1735011142398,-7546.19,0.00017528,2]
[346505115,1735011142408,-500.0,0.00017528,2]
[346505116,1735011142417,-6150.66,0.00017528,2]
[346505117,1735011142427,-824.32,0.00017528,2]
[346505118,1735011142437,-1376.04,0.0001753,2]
[346505119,1735011142447,-500.0,0.0001753,2]
[346505120,1735011142458,-500.0,0.0001753,2]
[346505121,1735011142467,-603.13,0.0001753,2]
[346505122,1735011142477,-500.0,0.0001753,2]
[346505123,1735011142486,-714.04,0.0001753,2]
[346505124,1735011142496,-518.45,0.0001753,2]
[346505125,1735011142506,-623.37,0.0001753,2]
[346505126,1735011142516,-500.0,0.0001753,2]
[346505127,1735011142526,-638.22,0.0001753,2]
[346505128,1735011142537,-500.0,0.0001753,2]
[346505129,1735011142547,-500.0,0.0001753,2]
[346505130,1735011142557,-803.42,0.0001753,2]
[346505131,1735011142567,-500.0,0.0001753,2]
[346505132,1735011142577,-833.06,0.0001753,2]
[346505133,1735011142588,-792.49,0.0001753,2]
[346505134,1735011142598,-500.0,0.0001753,2]
[346505135,1735011142608,-764.06,0.0001753,2]
[346505136,1735011142617,-516.10653881,0.0001753,2]
[346505137,1735011142627,-500.0,0.0001753,2]
[346505138,1735011142638,-500.0,0.0001753,2]
[346505139,1735011142648,-925.7,0.0001753,2]
[346505140,1735011142657,-500.0,0.0001753,2]
[346505141,1735011142667,-500.0,0.0001753,2]
[346505142,1735011142676,-633.33,0.0001753,2]
[346505143,1735011142686,-500.0,0.0001753,2]
[346505144,1735011142695,-500.0,0.0001753,2]
[346505145,1735011142705,-559.32,0.0001753,2]
[346505146,1735011142714,-500.0,0.0001753,2]
[346505147,1735011142724,-500.0,0.0001753,2]
[346505148,1735011142733,-500.0,0.0001753,2]
[346505149,1735011142743,-756.47,0.0001753,2]
[346505150,1735011142752,-500.0,0.0001753,2]
[346505151,1735011142762,-500.0,0.0001753,2]
[346505152,1735011142771,-652.18,0.0001753,2]
[346505153,1735011142780,-417.84240391,0.0001753,2]
[346505154,1735011142789,-1162.34,0.0001753,2]
[346505155,1735011142799,-657.02,0.0001753,2]
[346505156,1735011142808,-500.0,0.0001753,2]
[346505157,1735011142817,-750.75,0.0001753,2]
[346505158,1735011142827,-843.1,0.0001753,2]
[346505159,1735011142837,-2974.82,0.0001753,2]
[346505160,1735011142847,-1035.17,0.0001753,2]
[346505161,1735011142857,-500.0,0.0001753,2]
[346505162,1735011142866,-1473.91,0.0001753,2]
[346505163,1735011142876,-12237.72,0.0001753,2]
[346505164,1735011142886,-724.91,0.0001753,2]
[346505165,1735011142895,-1085.64,0.0001753,2]
[346505166,1735011142905,-2487.66,0.0001753,2]
[346505167,1735011142915,-855.98,0.0001753,2]
[346505168,1735011142924,-772.32,0.0001753,2]
[346505169,1735011142934,-1607.65,0.0001753,2]
[346505170,1735011142943,-1245.31,0.0001753,2]
[346505171,1735011142952,-2261.57,0.0001753,2]
[346505172,1735011142961,-793.8,0.0001753,2]
[346505173,1735011142970,-566.83,0.0001753,2]
[346505174,1735011142980,-1841.26,0.0001753,2]
[346505175,1735011142989,-500.0,0.0001753,2]
[346505176,1735011142999,-1675.73,0.0001753,2]
[346505177,1735011143008,-500.0,0.0001753,2]
[346505178,1735011143018,-500.0,0.0001753,2]
[346505179,1735011143027,-1294.02,0.0001753,2]
[346505180,1735011143037,-1457.13,0.0001753,2]
[346505181,1735011143047,-1344.13,0.0001753,2]
[346505182,1735011143057,-1732.9,0.0001753,2]
[346505183,1735011143067,-500.0,0.0001753,2]
[346505184,1735011143076,-913.87,0.0001753,2]
[346505185,1735011143086,-1087.59,0.0001753,2]
[346505186,1735011143097,-1777.07,0.0001753,2]
[346505187,1735011143107,-1013.56,0.0001753,2]
[346505188,1735011143116,-1109.62,0.0001753,2]
[346505189,1735011143126,-3611.54,0.0001753,2]
[346505190,1735011143136,-345.8,0.0001753,2]
[346505191,1735011143146,-700.34,0.0001753,2]
[346505192,1735011143156,-1340.51,0.0001753,2]
[346505193,1735011143165,-1798.91,0.0001753,2]
[346505194,1735011143175,-1108.03,0.0001753,2]
[346505195,1735011143184,-6420.88,0.0001753,2]
[346505196,1735011143194,-1834.74,0.0001753,2]
[346505197,1735011143204,-1753.2,0.0001753,2]
[346505198,1735011143214,-3473.97,0.0001753,2]
[346505199,1735011143224,-500.0,0.0001753,2]
[346505200,1735011143233,-1098.98,0.0001753,2]
[346505201,1735011143243,-500.0,0.00017531,2]
[346505202,1735011143252,-500.0,0.00017531,2]
[346505203,1735011143262,-500.0,0.00017531,2]
[346505204,1735011143271,-500.0,0.00017531,2]
[346505205,1735011143281,-500.0,0.00017531,2]
[346505206,1735011143290,-500.0,0.00017531,2]
[346505207,1735011143300,-500.0,0.00017531,2]
[346505208,1735011143310,-200.0,0.00017531,2]
[346505209,1735011143320,-500.0,0.00017531,2]
[346505210,1735011143330,-500.0,0.00017531,2]
[346505211,1735011143341,-500.0,0.00017531,2]
[346505212,1735011143351,-500.0,0.00017531,2]
[346505213,1735011143362,-500.0,0.00017531,2]
[346505214,1735011143372,-500.0,0.00017531,2]
[346505215,1735011143383,-500.0,0.00017531,2]
[346505216,1735011143393,-500.0,0.00017531,2]
[346505217,1735011143403,-500.0,0.00017531,2]
[346505218,1735011143413,-500.0,0.00017531,2]
[346505219,1735011143423,-500.0,0.00017531,2]
[346505220,1735011143432,-500.0,0.00017531,2]
[346505221,1735011143442,-500.0,0.00017531,2]
[346505222,1735011143452,-500.0,0.00017531,2]
[346505223,1735011143461,-500.0,0.00017531,2]
[346505224,1735011143472,-505.14,0.00017531,2]
[346505225,1735011143482,-500.0,0.00017531,2]
[346505226,1735011143492,-500.0,0.00017531,2]
[346505227,1735011143502,-500.0,0.00017531,2]
[346505228,1735011143511,-500.0,0.00017531,2]
[346505229,1735011143521,-500.0,0.00017531,2]
[346505230,1735011143531,-500.0,0.00017531,2]
[346505231,1735011143542,-500.0,0.00017531,2]
[346505232,1735011143552,-500.0,0.00017531,2]
[346505233,1735011143562,-500.0,0.00017531,2]
[346505234,1735011143571,-500.0,0.00017531,2]
[346505235,1735011143581,-500.0,0.00017531,2]
[346505236,1735011143592,-2197.64,0.00017531,2]
[346505237,1735011143602,-500.0,0.00017531,2]
[346505238,1735011143612,-500.0,0.00017531,2]
[346505239,1735011143622,-924.29,0.00017531,2]
[346505240,1735011143632,-3800.89,0.00017531,2]
[346505241,1735011143643,-4111.27,0.00017531,2]
[346505242,1735011143653,-3362.87,0.00017531,2]
[346505243,1735011143663,-500.0,0.00017531,2]
[346505244,1735011143675,-500.0,0.00017531,2]
[346505245,1735011143685,-500.0,0.00017531,2]
[346505246,1735011143695,-944.42,0.00017531,2]
[346505247,1735011143704,-578.45,0.00017531,2]
[346505248,1735011143714,-1032.77,0.00017531,2]
[346505249,1735011143724,-3197.19,0.00017531,2]
[346505250,1735011143734,-893.07,0.00017531,2]
[346505251,1735011143743,-831.96,0.00017531,2]
[346505252,1735011143753,-1264.9,0.00017531,2]
[346505253,1735011143763,-3791.3,0.00017531,2]
[346505254,1735011143772,-1468.04,0.00017531,2]
[346505255,1735011143783,-618.66,0.00017531,2]
[346505256,1735011143792,-500.0,0.00017531,2]
[346505257,1735011143802,-880.68,0.00017531,2]
[346505258,1735011143812,-4498.81,0.00017531,2]
[346505259,1735011143822,-980.14,0.00017531,2]
[346505260,1735011143832,-500.0,0.00017531,2]
[346505261,1735011143843,-845.95,0.00017531,2]
[346505262,1735011143853,-768.63,0.00017531,2]
[346505263,1735011143864,-1633.61,0.00017531,2]
[346505264,1735011143874,-10724.41,0.00017531,2]
[346505265,1735011143884,-500.0,0.00017531,2]
[346505266,1735011143895,-1907.04,0.00017531,2]
[346505267,1735011143905,-3409.97,0.00017531,2]
[346505268,1735011143915,-500.0,0.00017531,2]
[346505269,1735011143925,-500.0,0.00017531,2]
[346505270,1735011143935,-3144.7,0.00017531,2]
[346505271,1735011143944,-7767.4,0.00017531,2]
[346505272,1735011143954,-3102.39,0.00017531,2]
[346505273,1735011143964,-2500.86,0.00017531,2]
[346505274,1735011143973,-16025.73,0.00017531,2]
[346505275,1735011143983,-6082.71,0.00017531,2]
[346505276,1735011143994,-2316.02,0.00017531,2]
[346505277,1735011144004,-1193.06,0.00017531,2]
[346505278,1735011144014,-599.65,0.00017531,2]
[346505279,1735011144024,-500.0,0.00017532,2]
[346505280,1735011144034,-500.0,0.00017532,2]
[346505281,1735011144043,-500.0,0.00017532,2]
[346505282,1735011144052,-500.0,0.00017532,2]
[346505283,1735011144062,-500.0,0.00017532,2]
[346505284,1735011144071,-500.0,0.00017532,2]
[346505285,1735011144081,-500.0,0.00017532,2]
[346505286,1735011144093,-511.03,0.00017532,2]
[346505287,1735011144103,-623.05519759,0.00017532,2]
[346505288,1735011144113,-500.0,0.00017532,2]
[346505289,1735011144123,-500.0,0.00017532,2]
[346505290,1735011144133,-338.11962277,0.00017532,2]
[346505291,1735011144143,-500.0,0.00017532,2]
[346505292,1735011144153,-500.0,0.00017532,2]
[346505293,1735011144163,-500.0,0.00017532,2]
[346505294,1735011144173,-500.0,0.00017532,2]
[346505295,1735011144184,-500.0,0.00017532,2]
[346505296,1735011144193,-500.0,0.00017532,2]
[346505297,1735011144204,-500.0,0.00017532,2]
[346505298,1735011144214,-500.0,0.00017532,2]
[346505299,1735011144224,-500.0,0.00017532,2]
[346505300,1735011144464,-500.0,0.00017532,2]
[346505301,1735011144474,-500.0,0.00017532,2]
[346505302,1735011144484,-500.0,0.00017532,2]
[346505303,1735011144493,-511.22,0.00017532,2]
[346505304,1735011144502,-500.0,0.00017532,2]
[346505305,1735011144512,-500.0,0.00017532,2]
[346505306,1735011144521,-963.35,0.00017532,2]
[346505307,1735011144531,-500.0,0.00017532,2]
[346505308,1735011144540,-817.97,0.00017532,2]
[346505309,1735011144551,-1137.67,0.00017532,2]
[346505310,1735011144560,-916.16,0.00017532,2]
[346505311,1735011144570,-876.13,0.00017532,2]
[346505312,1735011144579,-215.1,0.00017532,2]
[346505313,1735011144590,-850.87,0.00017532,2]
[346505314,1735011144601,-809.33,0.00017532,2]
[346505315,1735011144611,-576.68,0.00017532,2]
[346505316,1735011144620,-680.75,0.00017532,2]
[346505317,1735011144631,-500.0,0.00017532,2]
[346505318,1735011144641,-1535.16,0.00017532,2]
[346505319,1735011144650,-835.68,0.00017532,2]
[346505320,1735011144659,-500.0,0.00017532,2]
[346505321,1735011144670,-11706.4,0.00017532,2]
[346505322,1735011144681,-659.12,0.00017532,2]
[346505323,1735011144690,-500.0,0.00017532,2]
[346505324,1735011144699,-653.62,0.00017532,2]
[346505325,1735011144708,-534.76,0.00017532,2]
[346505326,1735011144718,-1707.85,0.00017532,2]
[346505327,1735011144727,-500.0,0.00017532,2]
[346505328,1735011144737,-1321.6,0.00017532,2]
[346505329,1735011144746,-980.51,0.00017532,2]
[346505330,1735011144756,-1216.74,0.00017532,2]
[346505331,1735011144766,-941.42,0.00017532,2]
[346505332,1735011144776,-2484.72,0.00017532,2]
[346505333,1735011144786,-824.25,0.00017532,2]
[346505334,1735011144795,-766.19,0.00017532,2]
[346505335,1735011144805,-500.0,0.00017532,2]
[346505336,1735011144815,-500.0,0.00017532,2]
[346505337,1735011144825,-1000.0,0.00017532,2]